bitfinex-derivatives/quotes_ETHF0:USTF0_20250130
["timestamp","ask_amount","ask_price","bid_price","bid_amount"]
[1738259126718,0.61296,3263.0,3262.9,0.5338]
[1738259127210,3.2124001,3263.3,3262.9,1.14677]
[1738259127211,0.61295,3263.1,3262.9,1.14677]
[1738259127614,3.2124001,3263.3,3262.9,0.5338]
[1738259127806,0.61295,3263.1,3262.9,1.14676]
[1738259128005,3.2124001,3263.3,3262.9,0.5338]
[1738259128206,0.61294,3263.1,3262.9,1.14676]
[1738259128812,0.61293,3263.2,3263.0,0.61294]
[1738259129214,3.2124001,3263.3,3263.2,0.61292]
[1738259130319,0.0046001,3263.3,3262.9,0.5338]
[1738259130518,0.0046001,3263.3,3263.2,0.61292]
[1738259131418,0.61275,3264.1,3263.2,5.61292]
[1738259131614,3.2078,3264.2,3263.6,2.62367768]
[1738259131925,0.61278,3264.0,3263.8,0.61281]
[1738259132225,3.2078,3264.2,3263.7,1.0368]
[1738259132421,3.2078,3264.2,3264.1,0.61275]
[1738259132613,3.2078,3264.2,3263.7,1.0368]
[1738259133018,3.2078,3264.2,3264.1,0.61275]
[1738259133519,4.37834476,3264.8,3264.0,3.2078]
[1738259133709,3.88874476,3264.8,3264.2,2.62367768]
[1738259133913,0.61265,3264.7,3264.4,0.61269]
[1738259134212,3.2078,3264.8,3264.3,0.4861]
[1738259134422,3.2078,3264.8,3264.7,0.61264]
[1738259134719,3.2078,3264.8,3264.6,0.61264]
[1738259134919,3.82042,3264.8,3264.7,0.5301]
[1738259135225,3.2078,3264.8,3264.7,1.14274]
[1738259135425,0.61259,3265.0,3264.7,0.5301]
[1738259135722,0.61258,3265.1,3264.8,0.6126]
[1738259136025,0.6126,3265.0,3264.7,1.14273]
[1738259136425,0.6126,3264.9,3264.7,1.14273]
[1738259136721,3.2078,3265.2,3264.7,1.14273]
[1738259136924,0.61259,3265.0,3264.7,1.14273]
[1738259137422,0.61262,3264.8,3264.7,0.5301]
[1738259137719,0.61262,3264.8,3264.2,0.61272]
[1738259137720,0.61269,3264.5,3264.2,0.61272]
[1738259138024,0.61269,3264.5,3264.3,0.61271]
[1738259138922,3.2078,3264.8,3264.1,3.725]
[1738259139121,0.6127,3264.4,3264.1,3.725]
[1738259139415,0.61267,3264.6,3264.3,0.61271]
[1738259139624,3.2078,3264.8,3264.1,3.725]
[1738259139814,0.61271,3264.4,3264.2,0.61273]
[1738259140019,0.61264,3264.7,3264.3,0.61271]
[1738259140217,0.61267,3264.6,3264.3,0.61271]
[1738259140619,0.61267,3264.6,3264.1,3.725]
[1738259140620,0.61267,3264.6,3264.2,0.61273]
[1738259140814,0.61267,3264.6,3264.3,0.6127]
[1738259141326,2.14424,3264.7,3264.1,3.725]
[1738259141519,1.5316,3264.7,3264.1,3.725]
[1738259141716,3.2078,3264.8,3264.2,0.61271]
[1738259142122,0.61269,3264.4,3264.2,0.61271]
[1738259142625,0.61268,3264.5,3264.2,0.61271]
[1738259142816,0.61264,3264.7,3264.2,0.61271]
[1738259143130,3.2078,3264.8,3264.1,3.725]
[1738259143427,0.61264,3264.7,3264.5,0.61267]
[1738259143830,3.2078,3264.8,3264.1,3.725]
[1738259144028,3.2078,3264.8,3264.2,2.62367768]
[1738259144326,3.2078,3264.8,3264.7,0.61264]
[1738259144827,3.2078,3265.2,3264.7,0.61264]
[1738259145023,3.2078,3265.2,3265.1,0.61256]
[1738259145822,0.61243,3265.8,3265.6,0.61246]
[1738259146022,3.2078,3266.0,3265.7,0.5257]
[1738259146226,0.61243,3265.8,3265.7,0.5257]
[1738259146728,3.2078,3266.0,3265.7,1.13814]
[1738259146918,3.82021,3266.0,3265.8,0.61243]
[1738259147319,3.2078,3266.0,3265.7,0.5257]
[1738259148030,0.61242,3265.9,3265.8,0.61243]
[1738259148228,3.82021,3266.0,3265.8,0.61243]
[1738259148623,3.82021,3266.0,3265.9,0.61241]
[1738259148825,0.61242,3265.9,3265.7,0.5257]
[1738259149123,0.61242,3265.9,3265.8,0.61243]
[1738259149627,3.2078,3266.0,3265.9,0.61241]
[1738259149827,0.61233,3266.4,3266.2,0.61235]
[1738259150429,0.61233,3266.4,3266.3,0.61234]
[1738259150634,3.2078,3266.5,3266.0,0.523]
[1738259150932,3.2078,3266.5,3266.0,0.61238]
[1738259151136,0.61239,3266.1,3265.9,3.2078]
[1738259151327,0.61239,3266.1,3266.0,0.61239]
[1738259151528,0.61239,3266.0,3265.9,3.2078]
[1738259151732,0.61247,3265.6,3265.5,3.7412]
[1738259152024,3.2078,3265.8,3265.4,0.0046001]
[1738259152225,0.61249,3265.5,3265.4,0.0046001]
[1738259158339,0.61246,3265.7,3265.5,0.61247]
[1738259158641,3.2078,3265.8,3265.5,0.61247]
[1738259158838,0.61249,3265.5,3265.4,0.6171101]
[1738259159135,0.61249,3265.5,3265.4,0.0046001]
[1738259161335,0.61248,3265.6,3265.4,0.0046001]
[1738259161542,3.2078,3265.8,3265.4,0.0046001]
[1738259161837,3.2078,3265.8,3265.7,0.61245]
[1738259162030,0.61238,3266.1,3265.9,0.61241]
[1738259162242,0.61235,3266.3,3266.1,0.61237]
[1738259162434,3.82009,3266.6,3266.4,0.61231]
[1738259162637,3.2078,3266.6,3266.5,0.6123]
[1738259162834,3.8201,3266.6,3266.4,0.61231]
[1738259163134,3.8201,3266.6,3266.2,0.5167]
[1738259163135,0.6123,3266.6,3266.5,0.6123]
[1738259163330,0.61227,3266.7,3266.6,0.61228]
[1738259163530,0.61229,3266.6,3266.3,0.61234]
[1738259163738,2.62367768,3266.9,3266.2,3.7245]
[1738259163937,0.61234,3266.3,3266.2,0.5167]
[1738259164238,0.61239,3266.0,3265.9,0.9964]
[1738259164437,0.61245,3265.7,3265.6,0.5173]
[1738259164632,0.61245,3265.8,3265.6,1.12976]
[1738259164832,3.2078,3266.2,3265.6,0.5173]
[1738259165139,0.61245,3265.7,3265.6,0.5173]
[1738259165339,0.61238,3266.1,3265.6,1.12975]
[1738259165637,0.61245,3265.7,3265.6,0.5173]
[1738259165834,0.61244,3265.8,3265.6,1.12976]
[1738259166338,0.61245,3265.7,3265.6,0.5173]
[1738259166540,0.61249,3265.5,3265.4,3.2124001]
[1738259166943,0.61249,3265.5,3265.4,0.0046001]
[1738259167737,3.2078,3265.8,3265.4,0.0046001]
[1738259168043,0.61249,3265.5,3265.4,0.0046001]
[1738259169235,3.2078,3265.8,3265.4,0.0046001]
[1738259169435,0.61249,3265.5,3265.4,0.0046001]
[1738259169944,3.2078,3265.8,3265.4,0.0046001]
[1738259170147,0.61245,3265.7,3265.5,0.61247]
[1738259170543,4.7387,3266.2,3265.5,0.4916]
[1738259170743,0.61246,3265.7,3265.5,1.10409]
[1738259171341,0.61247,3265.6,3265.5,0.4916]
[1738259171644,0.61249,3265.5,3265.4,0.0046001]
[1738259175147,0.61249,3265.5,3263.4,29.04503058]
[1738259175148,5.0,3265.5,3264.1,3.2078]
[1738259175343,0.61272,3264.3,3264.1,4.07399938]
[1738259175649,0.6127,3264.4,3264.1,3.46125938]
[1738259175846,0.6127,3264.4,3264.2,0.61273]
[1738259176251,7.36294768,3265.0,3264.1,3.2078]
[1738259176551,0.61723638,3264.6,3264.1,3.2078]
[1738259177152,0.00457638,3264.6,3264.4,0.61269]
[1738259177348,0.00457638,3264.6,3264.5,0.5057]
[1738259177849,0.00457638,3264.6,3264.5,1.11838]
[1738259179656,0.61723638,3264.6,3264.5,0.5057]
[1738259179947,0.00457638,3264.6,3264.1,3.2078]
[1738259180251,0.61273,3264.2,3264.1,3.2078]
[1738259181946,1.53172,3264.5,3264.0,1.01889298]
[1738259181947,0.61275,3264.1,3264.0,1.01889298]
[1738259185361,0.61274,3264.2,3264.0,1.63166298]
[1738259185550,0.61275,3264.1,3264.0,1.01889298]
[1738259188954,0.00457638,3264.6,3264.0,1.01889298]
[1738259189155,0.00457638,3264.6,3264.5,2.62367768]
[1738259189352,3.2078,3265.1,3264.5,2.62367768]
[1738259189549,3.2078,3265.1,3264.5,0.61267]
[1738259189550,0.61265,3264.7,3264.5,0.61267]
[1738259189750,0.61265,3264.7,3264.6,1.0352]
[1738259190059,3.2078,3265.1,3264.6,1.0352]
[1738259190260,0.61263,3264.8,3264.7,0.5063]
[1738259192262,0.61262,3264.8,3264.7,1.11893]
[1738259192557,0.61262,3264.8,3264.7,0.5063]
[1738259194250,3.2078,3265.1,3264.7,0.5063]
[1738259194448,0.61259,3265.0,3264.8,0.61261]
[1738259194653,3.2078,3265.1,3265.0,0.61258]
[1738259194854,3.82037,3265.1,3264.9,0.61259]
[1738259195256,0.61261,3264.9,3264.7,1.11893]
[1738259196160,3.82037,3265.1,3264.9,0.61259]
[1738259196658,0.61257,3265.1,3264.9,0.61259]
[1738259197157,0.61256,3265.2,3265.0,0.61257]
[1738259197355,0.6126,3265.0,3264.8,0.61261]
[1738259197557,0.61261,3264.9,3264.7,1.11892]
[1738259197753,1.53135,3265.3,3264.7,0.5063]
[1738259197954,0.61262,3264.8,3264.7,0.5063]
[1738259199776,0.61275,3264.1,3263.6,3.2078]
[1738259199953,0.61275,3264.1,3263.6,3.7309]
[1738259200351,0.61274,3264.2,3263.6,3.7309]
[1738259200657,3.2078,3264.6,3264.0,0.61736298]
[1738259200852,0.61273,3264.2,3264.1,1.0226]
[1738259201559,0.61271,3264.4,3264.1,4.84314]
[1738259201762,0.61273,3264.2,3264.1,4.2304]
[1738259207464,0.61273,3264.2,3264.1,3.7027]
[1738259211566,0.61275,3264.1,3264.0,0.00459298]
[1738259214167,3.2078,3264.2,3264.0,0.00459298]
[1738259214466,3.82054,3264.2,3264.0,0.61735298]
[1738259214668,0.61275,3264.1,3264.0,0.61735298]
[1738259214861,3.2078,3264.2,3264.0,0.61735298]
[1738259215169,0.61275,3264.1,3264.0,0.61735298]
[1738259215366,3.2078,3264.2,3264.0,0.00459298]
[1738259215572,0.6127,3264.4,3264.2,0.61272]
[1738259215773,3.2078,3264.6,3264.3,0.9961]
[1738259215963,3.82047,3264.6,3264.4,1.13808]
[1738259216466,3.82047,3264.6,3264.5,0.61268]
[1738259216663,3.2078,3264.6,3264.5,0.61268]
[1738259217067,3.82046,3264.6,3264.5,0.61268]
[1738259217567,3.2078,3264.6,3264.5,0.61268]
[1738259217766,3.82046,3264.6,3264.5,0.61268]
[1738259218074,0.61268,3264.5,3264.4,0.5254]
[1738259218469,5.83147768,3264.6,3264.0,0.00459298]
[1738259218773,0.61275,3264.1,3264.0,0.00459298]
[1738259219169,0.61271,3264.4,3264.3,0.6127]
[1738259219371,3.82047,3264.6,3264.5,0.61268]
[1738259219965,3.2078,3264.6,3264.1,0.9897]
[1738259220165,3.2078,3264.6,3264.2,0.61273]
[1738259220367,3.2078,3264.6,3264.1,0.9897]
[1738259220572,0.61273,3264.2,3264.1,0.9897]
[1738259220773,0.61273,3264.2,3264.1,0.4914]
[1738259220972,0.61275,3264.1,3264.0,0.00459298]
[1738259221372,0.61275,3264.1,3264.0,0.61736298]
[1738259221571,0.61275,3264.1,3264.0,0.00459298]
[1738259230874,0.61275,3264.1,3264.0,0.00306697]
[1738259232879,0.61275,3264.1,3264.0,0.61583697]
[1738259234781,0.61275,3264.1,3264.0,0.00306697]
[1738259235183,0.61275,3264.1,3264.0,0.61583697]
[1738259235381,0.61275,3264.1,3264.0,0.00306697]
[1738259235784,0.61275,3264.1,3264.0,0.61583697]
[1738259235979,0.00152602,3264.4,3264.0,0.00306697]
[1738259236286,0.00152602,3264.4,3264.3,0.61271]
[1738259236875,0.00152602,3264.4,3264.2,0.5228]
[1738259236876,0.61259,3265.0,3264.2,2.05462]
[1738259237081,3.2078,3265.2,3264.6,2.14427]
[1738259237386,0.61258,3265.1,3264.9,0.61259]
[1738259237582,0.61258,3265.1,3265.0,1.66438]
[1738259238980,0.61258,3265.1,3265.0,1.0518]
[1738259239487,0.61262,3264.8,3264.7,0.5283]
[1738259239782,0.61266,3264.6,3264.5,1.13546]
[1738259240177,0.61266,3264.6,3264.5,0.5228]
[1738259240581,0.61269,3264.4,3264.3,0.5346]
[1738259241689,0.61269,3264.4,3264.3,1.14731]
[1738259241985,0.61269,3264.5,3264.4,0.61269]
[1738259242186,3.2078,3264.7,3264.3,0.5346]
[1738259242387,0.61269,3264.4,3264.3,1.14731]
[1738259242982,0.61269,3264.5,3264.4,0.61268]
[1738259243289,0.61269,3264.4,3264.3,0.5346]
[1738259243882,0.61269,3264.4,3264.3,1.14731]
[1738259245781,0.61269,3264.4,3264.3,0.5346]
[1738259246477,0.61269,3264.4,3264.3,1.14731]
[1738259246683,0.61269,3264.5,3264.4,0.61268]
[1738259247189,3.2078,3264.7,3264.3,0.5346]
[1738259247391,0.61269,3264.4,3264.3,1.14731]
[1738259248787,3.2078,3264.7,3264.3,0.5346]
[1738259248985,0.61261,3264.9,3264.8,0.61259]
[1738259249184,3.2078,3265.2,3264.5,0.497]
[1738259249383,0.61257,3265.1,3265.0,0.61256]
[1738259250890,0.6126,3265.0,3264.9,0.61259]
[1738259251188,3.2078,3265.2,3264.8,0.5054]
[1738259251378,0.61259,3265.0,3264.9,0.61257]
[1738259252389,0.6126,3264.9,3264.8,1.11799]
[1738259252585,0.61259,3265.0,3264.9,0.61259]
[1738259253290,3.2078,3265.2,3264.8,0.5054]
[1738259253487,0.61258,3265.1,3265.0,0.61258]
[1738259253890,0.61259,3265.0,3264.9,0.61259]
[1738259254391,0.6126,3264.9,3264.8,1.118]
[1738259255493,0.6126,3264.9,3264.8,0.5054]
[1738259256287,0.6126,3264.9,3264.8,1.11802]
[1738259256489,0.6126,3264.9,3264.8,0.5054]
[1738259256689,0.6126,3264.9,3264.8,1.11802]
[1738259257486,0.61259,3265.0,3264.9,0.61259]
[1738259257689,0.6126,3264.9,3264.8,1.11801]
[1738259257882,0.61259,3265.0,3264.9,0.6126]
[1738259258088,3.2078,3265.2,3265.0,0.61258]
[1738259258089,0.61257,3265.1,3265.0,0.61258]
[1738259258786,3.82035,3265.2,3264.9,0.6126]
[1738259258990,3.82035,3265.2,3265.1,0.61256]
[1738259259189,3.2078,3265.2,3264.8,0.5054]
[1738259259496,0.6126,3264.9,3264.8,0.5054]
[1738259262289,0.6126,3264.9,3264.8,1.11802]
[1738259262489,0.6126,3264.9,3264.8,0.5054]
[1738259263193,0.6126,3264.9,3264.8,1.11802]
[1738259264293,3.2078,3265.7,3264.8,3.12907768]
[1738259264592,3.2078,3266.1,3265.6,3.2078]
[1738259264790,3.2078,3266.5,3265.7,1.5135]
[1738259264990,0.61238,3266.1,3266.0,0.61238]
[1738259265590,0.61243,3265.8,3265.7,2.12594]
[1738259266693,0.61242,3265.9,3265.7,2.12594]
[1738259266899,2.62367768,3266.2,3265.7,1.5135]
[1738259267198,3.2078,3266.5,3265.7,1.5135]
[1738259267395,0.61232,3266.4,3266.3,0.61233]
[1738259267596,0.61236,3266.2,3266.1,0.61237]
[1738259267798,0.61236,3266.2,3265.7,1.5135]
[1738259268001,6.32007768,3266.5,3265.7,1.5135]
[1738259268195,2.62367768,3266.2,3265.7,1.5135]
[1738259268401,0.61243,3265.8,3265.7,1.5135]
[1738259269605,3.2078,3266.1,3265.7,1.5135]
[1738259269805,0.6124,3266.0,3265.8,0.61242]
[1738259270604,3.2078,3266.1,3265.7,1.5135]
[1738259271308,0.61243,3265.8,3265.7,1.5135]
[1738259271500,0.61242,3265.9,3265.7,2.12595]
[1738259272294,3.2078,3266.1,3265.7,1.5135]
[1738259272495,0.61239,3266.0,3265.7,1.5135]
[1738259272707,0.6124,3266.0,3265.8,0.61242]
[1738259273106,3.2078,3266.1,3265.8,0.61242]
[1738259273302,3.2078,3266.5,3265.7,4.13717768]
[1738259273604,0.61226,3266.8,3266.6,0.61227]
[1738259273808,0.61226,3266.8,3266.7,1.11716]
[1738259274809,0.61226,3266.8,3266.7,0.5049]
[1738259275010,0.61226,3266.8,3266.7,1.11716]
[1738259277917,0.61223,3266.9,3266.8,0.61222]
[1738259278115,3.2078,3267.0,3266.7,0.5049]
[1738259278319,3.2078,3267.0,3266.9,0.61222]
[1738259278907,0.4883,3267.7,3267.0,1.53048]
[1738259279214,3.2078,3268.0,3267.3,1.53038]
[1738259279408,0.61205,3267.9,3267.6,0.61209]
[1738259279611,0.61207,3267.8,3267.7,1.12416]
[1738259281619,0.61207,3267.8,3267.7,0.5121]
[1738259281817,0.61211,3267.6,3267.5,0.6121]
[1738259282618,0.61211,3267.5,3267.4,1.13550298]
[1738259283119,3.2078,3268.0,3267.4,0.52339298]
[1738259283321,3.81983,3268.0,3267.9,0.61204]
[1738259283717,3.81983,3268.0,3267.6,3.2078]
[1738259283718,0.61205,3267.9,3267.8,0.61204]
[1738259284020,0.61207,3267.8,3267.7,0.61206]
[1738259284418,0.61207,3267.8,3267.6,4.06635831]
[1738259284726,1.52994,3268.3,3267.6,3.45427831]
[1738259284727,0.61204,3267.9,3267.6,3.45427831]
[1738259284920,0.61204,3267.9,3267.7,0.61206]
[1738259285420,0.95220636,3268.4,3267.8,0.5069]
[1738259285617,0.61199,3268.2,3268.0,0.612]
[1738259285812,0.95220636,3268.4,3268.1,0.5308]
[1738259286217,3.2078,3269.0,3268.1,3.15447768]
[1738259286518,3.2078,3269.0,3268.7,0.61188]
[1738259286725,0.61185,3268.9,3268.8,1.0377]
[1738259286922,3.81964,3269.0,3268.8,2.16417]
[1738259287123,9.53346465,3269.6,3268.8,1.5523]
[1738259287124,6.90978697,3269.6,3268.8,1.5523]
[1738259287319,3.2078,3269.8,3268.8,1.5523]
[1738259287320,0.61178,3269.3,3269.0,2.62367768]
[1738259287519,0.61178,3269.3,3269.1,0.6118]
[1738259287717,0.61175,3269.5,3269.2,0.61178]
[1738259287923,0.61175,3269.5,3269.0,2.62367768]
[1738259287924,0.61179,3269.3,3269.0,3.23549768]
[1738259288126,0.61183,3269.0,3268.9,0.00459298]
[1738259288323,0.6118,3269.2,3268.9,0.00459298]
[1738259288520,0.6118,3269.2,3268.9,0.61643298]
[1738259288718,0.61183,3269.1,3268.9,0.61644298]
[1738259288921,0.61183,3269.1,3268.9,0.00459298]
[1738259289119,0.61183,3269.1,3268.9,0.61644298]
[1738259289318,1.52927,3269.7,3268.9,0.00459298]
[1738259289319,0.61183,3269.0,3268.9,0.00459298]
[1738259291921,0.61196,3268.3,3268.2,0.5278]
[1738259292631,5.83147768,3268.7,3268.0,0.518]
[1738259292833,5.83147768,3268.7,3267.9,0.5167]
[1738259292834,0.61206,3267.8,3267.7,0.5278]
[1738259293730,3.2078,3267.9,3267.6,0.25348074]
[1738259293936,0.61211,3267.5,3267.4,0.00459298]
[1738259295836,6.44358768,3267.5,3267.4,0.00459298]
[1738259296036,0.61224,3266.8,3266.7,0.5021]
[1738259298332,3.2078,3267.1,3266.7,0.5021]
[1738259298839,2.90017768,3267.7,3266.7,0.5021]
[1738259298840,0.61216,3267.3,3267.0,0.61219]
[1738259299043,0.61216,3267.3,3267.1,0.61218]
[1738259299338,4.738,3267.7,3267.1,0.61218]
[1738259299339,0.61214,3267.4,3267.1,0.61218]
[1738259299538,0.61215,3267.3,3267.0,0.9995]
[1738259299736,3.2078,3267.7,3267.0,0.9995]
[1738259299926,0.61218,3267.2,3267.0,0.9995]
[1738259300131,3.2078,3267.7,3267.0,1.24985768]
[1738259300332,0.61219,3267.1,3267.0,0.5028]
[1738259301133,0.61219,3267.1,3266.7,4.32215]
[1738259301134,0.61224,3266.8,3266.7,3.96130374]
[1738259301334,0.61224,3266.8,3266.7,0.75350374]
[1738259301642,0.61224,3266.8,3266.7,0.5021]
[1738259302332,0.61217,3267.2,3266.7,1.11436]
[1738259302528,0.61223,3266.9,3266.7,1.11436]
[1738259302735,3.2078,3267.3,3266.8,0.61223]
[1738259302736,0.6122,3267.1,3266.8,0.61223]
[1738259302942,3.2078,3267.3,3266.7,3.7099]
[1738259303439,0.61218,3267.2,3266.9,0.61221]
[1738259303836,0.61218,3267.2,3267.0,0.5155]
[1738259304237,0.61218,3267.2,3267.0,1.1277]
[1738259304944,7.36166768,3267.7,3267.0,0.5155]
[1738259304945,0.61219,3267.1,3267.0,0.5155]
[1738259305133,1.53024,3267.6,3267.0,0.5155]
[1738259305337,0.61218,3267.2,3267.0,0.5155]
[1738259305736,0.61219,3267.1,3267.0,0.5155]
[1738259305943,0.61224,3266.8,3266.7,3.7099]
[1738259306347,0.61224,3266.8,3266.7,0.5021]
[1738259307236,0.6123,3266.5,3266.4,0.00459298]
[1738259307439,3.8201,3266.5,3266.4,0.00459298]
[1738259308047,0.6123,3266.5,3266.4,0.00459298]
[1738259308939,0.61228,3266.7,3266.4,3.82470298]
[1738259309243,3.2078,3267.3,3266.6,2.62367768]
[1738259309447,3.2078,3267.3,3266.4,3.21239298]
[1738259309448,3.81996,3267.3,3267.1,0.61219]
[1738259309744,3.81996,3267.3,3267.2,0.61217]
[1738259309745,3.2078,3267.3,3267.2,0.61217]
[1738259309946,3.2078,3267.3,3266.9,2.62367768]
[1738259310146,3.81996,3267.3,3267.1,0.61217]
[1738259310543,3.81996,3267.3,3267.2,0.5059]
[1738259311548,0.6122,3267.1,3266.9,0.61222]
[1738259312440,0.00214661,3267.4,3267.0,0.61219]
[1738259312441,0.61218,3267.2,3267.0,0.61219]
[1738259313233,0.00214661,3267.4,3267.0,0.61219]
[1738259313446,0.61219,3267.1,3267.0,0.61219]
[1738259313638,0.61218,3267.2,3267.0,0.61219]
[1738259313837,0.61219,3267.1,3266.9,0.61221]
[1738259314235,0.61218,3267.2,3267.0,0.61219]
[1738259314440,0.61218,3267.2,3267.1,0.61219]
[1738259314842,0.61218,3267.2,3266.8,0.5059]
[1738259315039,0.61218,3267.2,3267.0,0.61219]
[1738259316648,0.00214661,3267.4,3266.8,0.5059]
[1738259316949,0.61221,3267.0,3266.8,1.11813]
[1738259317145,0.61222,3266.9,3266.8,0.5059]
[1738259317447,0.61222,3266.9,3266.8,1.11814]
[1738259318147,0.61224,3266.8,3266.7,0.5286]
[1738259319750,0.61224,3266.9,3266.7,0.5286]
[1738259319951,0.61224,3266.9,3266.7,1.14085]
[1738259320445,5.50341,3267.3,3266.7,0.5286]
[1738259320650,0.61224,3266.8,3266.7,0.5286]
[1738259321845,0.6123,3266.5,3266.4,3.21239298]
[1738259324250,0.6123,3266.5,3266.4,0.00459298]
[1738259325658,3.8201,3266.5,3266.4,0.00459298]
[1738259325855,0.61239,3266.0,3265.9,0.5258]
[1738259326356,3.2078,3266.5,3265.5,4.2246]
[1738259326557,0.61247,3265.6,3265.5,5.36287]
[1738259326749,0.61246,3265.7,3265.5,4.7504]
[1738259327148,0.61246,3265.7,3265.6,0.61247]
[1738259327347,0.00459298,3265.9,3265.5,5.00146929]
[1738259327546,0.00459298,3265.9,3265.8,0.61243]
[1738259332658,3.2078,3266.9,3266.4,0.6123]
[1738259332860,0.61224,3266.9,3266.7,0.61225]
[1738259333063,3.20994661,3267.4,3266.8,0.509]
[1738259333259,3.20994661,3267.4,3266.9,0.61222]
[1738259333563,3.20994661,3267.4,3266.8,0.509]
[1738259333764,0.61222,3266.9,3266.8,0.509]
[1738259334361,0.61222,3266.9,3266.8,1.12124]
[1738259334660,0.61222,3266.9,3266.8,0.509]
[1738259336960,0.61222,3266.9,3266.8,1.12124]
[1738259338167,3.82002,3267.0,3266.9,0.61222]
[1738259338963,3.2078,3267.0,3266.8,0.509]
[1738259339172,0.61222,3266.9,3266.8,1.12123]
[1738259339670,0.61222,3266.9,3266.8,1.12124]
[1738259341267,0.61221,3267.1,3267.0,0.61219]
[1738259341464,0.61218,3267.2,3267.1,0.61216]
[1738259342070,0.61219,3267.1,3267.0,1.0948]
[1738259342766,0.61219,3267.1,3267.0,0.4826]
[1738259343071,0.61222,3266.9,3266.8,0.509]
[1738259344069,0.277,3267.1,3266.7,3.21239298]
[1738259344370,0.61224,3266.8,3266.7,0.00459298]
[1738259344569,0.61224,3266.8,3266.7,0.61685298]
[1738259344879,0.61224,3266.8,3266.7,0.00459298]
[1738259345259,0.61224,3266.8,3266.7,0.61685298]
[1738259346874,1.53043,3267.2,3266.9,0.6122]
[1738259346875,0.61223,3267.0,3266.9,0.6122]
[1738259347472,1.53047,3267.1,3266.7,0.00459298]
[1738259347669,0.61224,3266.8,3266.7,0.00459298]
[1738259348177,0.61224,3266.8,3266.7,0.61685298]
[1738259348971,0.61224,3266.8,3266.7,0.00459298]
[1738259349573,0.61224,3266.8,3266.7,0.00306977]
[1738259350277,0.61224,3266.8,3265.9,0.6124]
[1738259350278,0.61243,3266.0,3265.9,0.6124]
[1738259351179,0.61236,3266.3,3266.2,0.61234]
[1738259351572,3.2078,3266.4,3266.3,0.61234]
[1738259352080,3.2078,3266.4,3266.3,3.22847946]
[1738259352272,0.61228,3266.7,3266.6,0.61226]
[1738259352873,3.2078,3266.8,3266.4,0.5209]
[1738259353280,0.6123,3266.5,3266.4,0.5209]
[1738259353479,0.61237,3266.1,3265.9,3.8202]
[1738259353683,0.61239,3266.0,3265.9,3.2078]
[1738259353890,0.61239,3266.0,3265.9,3.82021]
[1738259354278,0.61241,3265.9,3265.8,0.5209]
[1738259354482,0.61241,3265.9,3265.8,1.13333]
[1738259355490,0.61241,3265.9,3265.8,0.5209]
[1738259355988,0.61241,3265.9,3265.8,1.13333]
[1738259356188,0.61241,3266.0,3265.9,0.6124]
[1738259356987,0.61237,3266.2,3266.0,0.61238]
[1738259357594,0.61237,3266.1,3266.0,0.61238]
[1738259359190,0.61236,3266.2,3266.1,0.61236]
[1738259359689,5.01539,3266.7,3266.0,2.61613946]
[1738259359890,5.01539,3266.7,3266.1,0.61236]
[1738259359891,0.61236,3266.2,3266.1,0.61236]
[1738259360688,0.61236,3266.2,3266.1,1.10256]
[1738259361192,0.61236,3266.2,3266.1,0.4902]
[1738259361786,0.61236,3266.2,3266.1,1.10257]
[1738259362195,0.61236,3266.2,3266.1,0.4902]
[1738259364492,0.61236,3266.2,3266.1,1.10257]
[1738259364793,0.61236,3266.2,3266.1,0.4902]
[1738259365495,0.61236,3266.2,3266.1,1.10257]
[1738259365991,0.61236,3266.2,3266.1,0.4902]
[1738259366598,0.61236,3266.2,3266.1,1.10257]
[1738259367396,3.2078,3266.7,3266.1,0.4902]
[1738259367596,0.6123,3266.6,3266.5,0.61228]
[1738259369193,0.6123,3266.5,3266.4,1.63002]
[1738259372500,0.6123,3266.5,3266.4,1.0177]
[1738259374094,0.6123,3266.5,3266.4,1.63002]
[1738259375101,0.6123,3266.5,3266.4,4.83782]
[1738259375298,2.06006,3267.0,3266.4,4.2255]
[1738259375494,0.61228,3266.7,3266.6,0.61227]
[1738259376697,0.61229,3266.6,3266.5,0.61228]
[1738259376999,0.6123,3266.5,3266.4,1.0177]
[1738259377997,0.6123,3266.5,3266.4,1.63002]
[1738259378808,0.61228,3266.6,3266.5,0.61228]
[1738259381306,0.6123,3266.5,3266.4,1.63001]
[1738259381903,0.61232,3266.4,3266.3,3.22846946]
[1738259382608,0.61231,3266.5,3266.4,0.61231]
[1738259383705,0.61232,3266.4,3266.3,3.22846946]
[1738259384004,1.53064,3266.8,3266.2,1.0121]
[1738259384211,0.61231,3266.5,3266.4,0.61231]
[1738259387409,2.06006,3267.0,3266.3,2.61613946]
[1738259387813,0.61236,3266.2,3265.7,0.61244]
[1738259388011,0.61245,3265.7,3265.6,0.00459298]
[1738259388512,0.61245,3265.7,3265.6,0.61706298]
[1738259388707,0.61245,3265.7,3265.6,0.00459298]
[1738259389109,0.61245,3265.7,3265.6,0.61706298]
[1738259389313,0.61244,3265.8,3265.7,0.61244]
[1738259389610,0.4943,3266.1,3265.6,3.23319244]
[1738259389611,0.61245,3265.7,3265.6,3.23319244]
[1738259390412,0.61245,3265.7,3265.6,0.00459298]
[1738259391212,0.61245,3265.7,3265.6,3.82486298]
[1738259391510,2.02526,3266.1,3265.6,3.82486298]
[1738259391511,0.61244,3265.8,3265.6,3.82486298]
[1738259391714,0.61245,3265.7,3265.6,3.82486298]
[1738259392510,0.61244,3265.8,3265.6,3.82486298]
[1738259392713,0.61244,3265.8,3265.6,3.21239298]
[1738259393017,0.4943,3266.1,3265.7,0.61245]